[Event "Skalica Rapid 2020"]
[Site "Skalica"]
[Date "2020.08.29"]
[Round "3.2"]
[White "Bidulsky, Matej"]
[Black "Beres, Dominik"]
[Result "1-0"]
[ECO "B00"]
[WhiteElo "1548"]
[BlackElo "1988"]
[Annotator "ChessBase"]
[PlyCount "119"]
[EventDate "2020.08.29"]
[EventType "swiss"]
[EventCountry "SVK"]
[SourceTitle "playchess.com"]
[Source "ChessBase"]
[SourceQuality "1"]
[TimeControl "600+5"]

1. e4 {[%emt 0:00:00]} d6 {[%emt 0:00:00]} 2. d4 {[%emt 0:00:00]} c6 {[%emt 0:00:00]} 3. Nc3 {[%emt 0:00:00]} Qc7 {[%emt 0:00:00]} 4. Nf3 {[%emt 0:00:00]} Nd7 {[%emt 0:00:01]} 5. b3 {[%emt 0:00:02]} e5 {[%emt 0:00:02]} 6. Bb2 {[%emt 0:00:01]} Ngf6 {[%emt 0:00:02]} 7. Bd3 {[%emt 0:00:03]} Be7 {[%emt 0:00:02]} 8. O-O {[%emt 0:00:03]} O-O {[%emt 0:00:04]} 9. Ne2 {[%emt 0:00:01]} Re8 {[%emt 0:00:11]} 10. Ng3 {[%emt 0:00:02]} Bf8 {[%emt 0:00:04]} 11. Re1 {[%emt 0:00:05]} a6 {[%emt 0:00:13]} 12. c4 {[%emt 0:00:01]} c5 {[%emt 0:00:04]} 13. d5 {[%emt 0:00:42]} g6 {[%emt 0:00:13]} 14. Nd2 {[%emt 0:00:05]} Bh6 {[%emt 0:00:04]} 15. h3 {[%emt 0:00:04]} Rb8 {[%emt 0:00:17]} 16. Bc1 {[%emt 0:00:02]} b5 {[%emt 0:00:10]} 17. Qf3 {[%emt 0:00:02]} Bg7 {[%emt 0:00:05]} 18. Qd1 {[%emt 0:00:07]} Nf8 {[%emt 0:00:30]} 19. Rf1 {[%emt 0:00:13]} h5 {[%emt 0:00:31]} 20. Nf3 {[%emt 0:00:19]} Bd7 {[%emt 0:00:15]} 21. Be3 {[%emt 0:00:09]} Qc8 {[%emt 0:00:06]} 22. Qd2 {[%emt 0:00:03]} bxc4 {[%emt 0:01:11]} 23. Bxc4 {[%emt 0:00:04]} Bb5 {[%emt 0:00:37]} 24. Bh6 {[%emt 0:00:11]} N8h7 {[%emt 0:00:17]} 25. Bxg7 {[%emt 0:00:05]} Kxg7 {[%emt 0:00:02]} 26. Ng5 {[%emt 0:00:06]} Bxc4 {[%emt 0:00:20]} 27. bxc4 {[%emt 0:00:38]} h4 {[%emt 0:00:21]} 28. Nxh7 {[%emt 0:00:17]} Nxh7 {[%emt 0:00:18]} 29. Ne2 {[%emt 0:00:03]} Rb4 {[%emt 0:00:11]} 30. Qd3 {[%emt 0:00:12]} Qb7 {[%emt 0:00:31]} 31. f4 {[%emt 0:00:01]} Qe7 {[%emt 0:00:23]} 32. f5 {[%emt 0:00:13]} Qg5 {[%emt 0:00:05]} 33. a3 {[%emt 0:00:13]} Rb6 {[%emt 0:00:12]} 34. Kh2 {[%emt 0:00:24]} Reb8 {[%emt 0:00:03]} 35. fxg6 {[%emt 0:00:16]} fxg6 {[%emt 0:00:09]} 36. Rf3 {[%emt 0:00:10]} Rb3 {[%emt 0:00:20]} 37. Qxb3 {[%emt 0:00:13]} Rxb3 {[%emt 0:00:02]} 38. Rxb3 {[%emt 0:00:01]} Qd2 {[%emt 0:00:10]} 39. Rb7+ {[%emt 0:00:27]} Kh6 {[%emt 0:00:02]} 40. Ng1 {[%emt 0:00:02]} Ng5 {[%emt 0:00:15]} 41. Rf1 {[%emt 0:00:09]} Nxe4 {[%emt 0:00:16]} 42. Rff7 {[%emt 0:00:07]} Ng5 {[%emt 0:00:12]} 43. Rf8 {[%emt 0:00:03]} Nh7 {[%emt 0:00:44]} 44. Rh8 {[%emt 0:00:02]} Qf4+ {[%emt 0:00:23]} 45. Kh1 {[%emt 0:00:01]} Qxc4 {[%emt 0:00:02]} 46. Rhxh7+ {[%emt 0:00:14]} Kg5 {[%emt 0:00:01]} 47. Rbf7 {[%emt 0:00:03]} e4 {[%emt 0:00:18]} 48. g3 {[%emt 0:01:49]} hxg3 {[%emt 0:00:23]} 49. h4+ {[%emt 0:00:01]} Kg4 {[%emt 0:00:05]} 50. Rhg7 {[%emt 0:00:27]} g2+ {[%emt 0:01:12]} 51. Kh2 {[%emt 0:00:02]} Kh5 {[%emt 0:00:26]} 52. Rh7+ {[%emt 0:00:01]} Kg4 {[%emt 0:00:03]} 53. Rh6 {[%emt 0:00:03]} Qf1 {[%emt 0:00:16]} 54. Rxg6+ {[%emt 0:00:32]} Kh5 {[%emt 0:00:01]} 55. Rgg7 {[%emt 0:00:25]} c4 {[%emt 0:00:23]} 56. Nh3 {[%emt 0:00:16]} g1=Q+ {[%emt 0:00:24]} 57. Nxg1 {[%emt 0:00:02]} Qe1 {[%emt 0:00:18]} 58. Nh3 {[%emt 0:00:12]} Qd2+ {[%emt 0:00:09]} 59. Rg2 {[%emt 0:00:02]} Qe3 {[%emt 0:00:15]} 60. Rh7+ {[%emt 0:00:06]} 1-0

[Event "Skalica Rapid 2020"]
[Site "Skalica"]
[Date "2020.08.29"]
[Round "3.3"]
[White "Beres, Tomas"]
[Black "Blaha, Tomas S"]
[Result "1-0"]
[ECO "A38"]
[WhiteElo "1948"]
[BlackElo "1089"]
[Annotator "ChessBase"]
[PlyCount "55"]
[EventDate "2020.08.29"]
[EventType "swiss"]
[EventCountry "SVK"]
[SourceTitle "playchess.com"]
[Source "ChessBase"]
[SourceQuality "1"]
[TimeControl "600+5"]

1. c4 {[%emt 0:00:00]} c5 {[%emt 0:00:00]} 2. Nc3 {[%emt 0:00:00]} Nc6 {[%emt 0:00:00]} 3. g3 {[%emt 0:00:00]} g6 {[%emt 0:00:00]} 4. Bg2 {[%emt 0:00:00]} Bg7 {[%emt 0:00:00]} 5. Nf3 {[%emt 0:00:01]} Nf6 {[%emt 0:00:00]} 6. O-O {[%emt 0:00:02]} O-O {[%emt 0:00:01]} 7. d3 {[%emt 0:00:00]} d6 {[%emt 0:00:02]} 8. a3 {[%emt 0:00:03]} a6 {[%emt 0:00:01]} 9. Rb1 {[%emt 0:00:01]} Rb8 {[%emt 0:00:02]} 10. Bd2 {[%emt 0:00:09]} Bd7 {[%emt 0:00:01]} 11. b4 {[%emt 0:00:13]} cxb4 {[%emt 0:00:33]} 12. axb4 {[%emt 0:00:01]} b5 {[%emt 0:00:01]} 13. cxb5 {[%emt 0:00:31]} axb5 {[%emt 0:00:01]} 14. Qb3 {[%emt 0:00:23]} Qb6 {[%emt 0:00:37]} 15. Be3 {[%emt 0:00:03]} Be6 {[%emt 0:00:02]} 16. Qa3 {[%emt 0:03:43]} Qb7 {[%emt 0:00:47]} 17. Nd4 {[%emt 0:00:20]} Ra8 {[%emt 0:01:10]} 18. Qc1 {[%emt 0:00:32]} Bd7 {[%emt 0:00:27]} 19. Ncxb5 {[%emt 0:00:16]} Nxd4 {[%emt 0:02:45]} 20. Nxd4 {[%emt 0:00:42]} Nd5 {[%emt 0:00:04]} 21. Qd2 {[%emt 0:00:16]} Ra4 {[%emt 0:01:24]} 22. Rfc1 {[%emt 0:01:06]} Rxb4 {[%emt 0:01:29]} 23. Bxd5 {[%emt 0:00:23]} Qxd5 {[%emt 0:00:43]} 24. Qxb4 {[%emt 0:00:02]} Bh3 {[%emt 0:00:08]} 25. Nf3 {[%emt 0:00:05]} Qa2 {[%emt 0:00:44]} 26. Qh4 {[%emt 0:00:50]} Qxe2 {[%emt 0:00:25]} 27. Ng5 {[%emt 0:00:16]} Bg2 {[%emt 0:00:28]} 28. Qxh7# {[%emt 0:00:03]} 1-0

[Event "Skalica Rapid 2020"]
[Site "Skalica"]
[Date "2020.08.29"]
[Round "3.4"]
[White "Yankelevich, Lev"]
[Black "Blaho, Stefan"]
[Result "1-0"]
[ECO "D38"]
[WhiteElo "2388"]
[BlackElo "2090"]
[Annotator "ChessBase"]
[PlyCount "95"]
[EventDate "2020.08.29"]
[EventType "swiss"]
[EventCountry "SVK"]
[SourceTitle "playchess.com"]
[Source "ChessBase"]
[SourceQuality "1"]
[TimeControl "600+5"]

1. Nf3 {[%emt 0:00:00]} d5 {[%emt 0:00:26]} 2. d4 {[%emt 0:00:07]} Nf6 {[%emt 0:00:14]} 3. c4 {[%emt 0:00:01]} e6 {[%emt 0:00:03]} 4. Nc3 {[%emt 0:00:02]} Bb4 {[%emt 0:00:13]} 5. Qa4+ {[%emt 0:00:12]} Nc6 {[%emt 0:00:01]} 6. e3 {[%emt 0:00:03]} O-O {[%emt 0:00:10]} 7. Bd2 {[%emt 0:00:02]} a6 {[%emt 0:00:15]} 8. cxd5 {[%emt 0:00:43]} exd5 {[%emt 0:00:01]} 9. Bd3 {[%emt 0:00:02]} Qe7 {[%emt 0:00:36]} 10. O-O {[%emt 0:00:22]} Bd6 {[%emt 0:01:33]} 11. h3 {[%emt 0:00:09]} Be6 {[%emt 0:00:34]} 12. a3 {[%emt 0:00:03]} Rad8 {[%emt 0:01:46]} 13. Qc2 {[%emt 0:00:08]} g6 {[%emt 0:00:44]} 14. Rfe1 {[%emt 0:00:08]} Rfe8 {[%emt 0:00:31]} 15. b4 {[%emt 0:00:26]} Qd7 {[%emt 0:00:24]} 16. Ng5 {[%emt 0:00:06]} Nh5 {[%emt 0:00:24]} 17. Nxe6 {[%emt 0:00:27]} Qxe6 {[%emt 0:00:03]} 18. Be2 {[%emt 0:00:02]} Ng7 {[%emt 0:00:01]} 19. Bf3 {[%emt 0:00:03]} Ne7 {[%emt 0:00:01]} 20. e4 {[%emt 0:00:02]} dxe4 {[%emt 0:00:02]} 21. Nxe4 {[%emt 0:00:07]} Qf5 {[%emt 0:00:20]} 22. Bg4 {[%emt 0:00:11]} Qb5 {[%emt 0:00:23]} 23. Nf6+ {[%emt 0:00:05]} Kh8 {[%emt 0:00:02]} 24. Be2 {[%emt 0:01:48]} Qf5 {[%emt 0:01:36]} 25. Qxf5 {[%emt 0:00:02]} Nexf5 {[%emt 0:00:02]} 26. Nxe8 {[%emt 0:00:02]} Rxe8 {[%emt 0:00:05]} 27. Bf3 {[%emt 0:00:12]} Rb8 {[%emt 0:00:10]} 28. Bc3 {[%emt 0:00:07]} Kg8 {[%emt 0:00:05]} 29. g3 {[%emt 0:00:13]} Ne6 {[%emt 0:00:04]} 30. Rad1 {[%emt 0:00:07]} Nf8 {[%emt 0:00:21]} 31. Kg2 {[%emt 0:00:07]} Nd7 {[%emt 0:00:04]} 32. Bg4 {[%emt 0:00:08]} Nb6 {[%emt 0:00:36]} 33. Bxf5 {[%emt 0:00:07]} gxf5 {[%emt 0:00:01]} 34. d5 {[%emt 0:00:09]} Nc4 {[%emt 0:00:05]} 35. a4 {[%emt 0:00:10]} Nb6 {[%emt 0:00:17]} 36. a5 {[%emt 0:00:05]} Nc4 {[%emt 0:00:10]} 37. Re2 {[%emt 0:00:31]} h6 {[%emt 0:00:01]} 38. Rd4 {[%emt 0:00:03]} b5 {[%emt 0:00:02]} 39. Rh4 {[%emt 0:00:29]} Kh7 {[%emt 0:00:05]} 40. Rh5 {[%emt 0:00:16]} Kg6 {[%emt 0:00:00]} 41. g4 {[%emt 0:00:05]} f4 {[%emt 0:00:09]} 42. Rf5 {[%emt 0:00:00]} Rc8 {[%emt 0:00:03]} 43. Rf6+ {[%emt 0:00:07]} Kh7 {[%emt 0:00:03]} 44. Rxf7+ {[%emt 0:00:03]} Kg8 {[%emt 0:00:02]} 45. Rg7+ {[%emt 0:00:06]} Kf8 {[%emt 0:00:02]} 46. Rh7 {[%emt 0:00:07]} f3+ {[%emt 0:00:13]} 47. Kxf3 {[%emt 0:00:03]} c6 {[%emt 0:00:03]} 48. Rh8+ {[%emt 0:00:03]} 1-0

[Event "Skalica Rapid 2020"]
[Site "Skalica"]
[Date "2020.08.29"]
[Round "3.5"]
[White "Panko, Radoslav"]
[Black "Bucek, Miroslav"]
[Result "1-0"]
[ECO "C34"]
[WhiteElo "2039"]
[BlackElo "1422"]
[Annotator "ChessBase"]
[PlyCount "38"]
[EventDate "2020.08.29"]
[EventType "swiss"]
[EventCountry "SVK"]
[SourceTitle "playchess.com"]
[Source "ChessBase"]
[SourceQuality "1"]
[TimeControl "600+5"]

1. e4 {[%emt 0:00:00]} e5 {[%emt 0:01:06]} 2. f4 {[%emt 0:00:06]} exf4 {[%emt 0:00:05]} 3. Nf3 {[%emt 0:00:02]} Ne7 {[%emt 0:00:06]} 4. d4 {[%emt 0:00:05]} d5 {[%emt 0:00:03]} 5. e5 {[%emt 0:00:16]} Ng6 {[%emt 0:00:05]} 6. Bd3 {[%emt 0:00:09]} c5 {[%emt 0:00:04]} 7. c3 {[%emt 0:00:07]} Nc6 {[%emt 0:00:03]} 8. Bxg6 {[%emt 0:01:38]} hxg6 {[%emt 0:00:02]} 9. Bxf4 {[%emt 0:00:04]} Bg4 {[%emt 0:00:04]} 10. Nbd2 {[%emt 0:00:41]} cxd4 {[%emt 0:00:13]} 11. cxd4 {[%emt 0:00:02]} Nxd4 {[%emt 0:00:09]} 12. Qa4+ {[%emt 0:00:10]} Nc6 {[%emt 0:00:14]} 13. Rc1 {[%emt 0:00:10]} Qd7 {[%emt 0:01:04]} 14. O-O {[%emt 0:01:01]} Be7 {[%emt 0:01:36]} 15. h3 {[%emt 0:05:27]} Be6 {[%emt 0:00:03]} 16. Qd1 {[%emt 0:00:28]} Rc8 {[%emt 0:00:42]} 17. Qe1 {[%emt 0:00:23]} Bxh3 {[%emt 0:03:24]} 18. gxh3 {[%emt 0:00:01]} Qxh3 {[%emt 0:00:02]} 19. Qg3 {[%emt 0:00:06]} Ra8 1-0

[Event "Skalica Rapid 2020"]
[Site "Skalica"]
[Date "2020.08.29"]
[Round "3.5"]
[White "Jurakic Lukas"]
[Black "Manik Mikulas"]
[Result "1/2-1/2"]
[ECO "B51"]
[WhiteElo "1918"]
[BlackElo "2313"]
[Annotator "ChessBase"]
[PlyCount "30"]
[EventDate "2020.08.29"]
[EventType "swiss"]
[EventCountry "SVK"]
[SourceTitle "playchess.com"]
[Source "ChessBase"]
[SourceQuality "1"]
[TimeControl "600+5"]

1. e4 {[%emt 0:00:00]} c5 {[%emt 0:00:00]} 2. Nf3 {[%emt 0:00:00]} d6 {[%emt 0:00:00]} 3. Bb5+ {[%emt 0:00:02]} Nd7 {[%emt 0:00:00]} 4. O-O {[%emt 0:00:02]} Ngf6 {[%emt 0:00:02]} 5. Re1 {[%emt 0:00:02]} a6 {[%emt 0:00:02]} 6. Bf1 {[%emt 0:00:02]} Ne5 {[%emt 0:00:28]} 7. h3 {[%emt 0:00:49]} e6 {[%emt 0:00:03]} 8. c3 {[%emt 0:00:05]} Be7 {[%emt 0:00:08]} 9. d4 {[%emt 0:00:13]} Nxf3+ {[%emt 0:00:14]} 10. Qxf3 {[%emt 0:00:02]} cxd4 {[%emt 0:00:09]} 11. cxd4 {[%emt 0:00:01]} d5 {[%emt 0:00:04]} 12. e5 {[%emt 0:00:13]} Ne4 {[%emt 0:00:02]} 13. Nc3 {[%emt 0:00:46]} Nxc3 {[%emt 0:00:08]} 14. bxc3 {[%emt 0:00:02]} O-O {[%emt 0:00:09]} 15. Bd3 {[%emt 0:00:11]} f5 {[%emt 0:00:05]} 1/2-1/2

[Event "Skalica Rapid 2020"]
[Site "Skalica"]
[Date "2020.08.29"]
[Round "3.6"]
[White "Szucs, Vladimir"]
[Black "Krakovsky, Peter"]
[Result "1-0"]
[ECO "D06"]
[WhiteElo "2088"]
[BlackElo "1661"]
[Annotator "ChessBase"]
[PlyCount "79"]
[EventDate "2020.08.29"]
[EventType "swiss"]
[EventCountry "SVK"]
[SourceTitle "playchess.com"]
[Source "ChessBase"]
[SourceQuality "1"]
[TimeControl "600+5"]

1. d4 {[%emt 0:00:00]} d5 {[%emt 0:00:00]} 2. c4 {[%emt 0:00:00]} Nf6 {[%emt 0:00:00]} 3. cxd5 {[%emt 0:00:01]} Nxd5 {[%emt 0:00:00]} 4. e4 {[%emt 0:00:01]} Nf6 {[%emt 0:00:02]} 5. Nc3 {[%emt 0:00:01]} e6 {[%emt 0:00:01]} 6. Nf3 {[%emt 0:00:01]} Be7 {[%emt 0:00:03]} 7. Bd3 {[%emt 0:00:03]} O-O {[%emt 0:00:02]} 8. O-O {[%emt 0:00:02]} c6 {[%emt 0:00:05]} 9. Qe2 {[%emt 0:00:02]} Nbd7 {[%emt 0:00:02]} 10. Bg5 {[%emt 0:00:02]} h6 {[%emt 0:00:02]} 11. Bh4 {[%emt 0:00:01]} b5 {[%emt 0:00:11]} 12. Rfe1 {[%emt 0:00:08]} Re8 {[%emt 0:00:03]} 13. Rad1 {[%emt 0:00:38]} Qb6 {[%emt 0:00:11]} 14. e5 {[%emt 0:00:14]} Nd5 {[%emt 0:00:11]} 15. Bxe7 {[%emt 0:00:14]} Nxe7 {[%emt 0:00:10]} 16. Qe4 {[%emt 0:00:11]} Nf8 {[%emt 0:00:23]} 17. b4 {[%emt 0:00:08]} Bb7 {[%emt 0:00:06]} 18. Qe2 {[%emt 0:00:28]} Rad8 {[%emt 0:00:05]} 19. Ne4 {[%emt 0:00:06]} Nf5 {[%emt 0:00:07]} 20. Nc5 {[%emt 0:00:39]} a5 {[%emt 0:00:35]} 21. a3 {[%emt 0:00:04]} axb4 {[%emt 0:00:02]} 22. axb4 {[%emt 0:00:01]} Bc8 {[%emt 0:00:12]} 23. Qe4 {[%emt 0:00:27]} Rd5 {[%emt 0:00:42]} 24. g4 {[%emt 0:00:15]} Ne7 {[%emt 0:00:20]} 25. h4 {[%emt 0:00:46]} Qd8 {[%emt 0:00:15]} 26. h5 {[%emt 0:00:15]} Kh8 {[%emt 0:00:24]} 27. Kg2 {[%emt 0:00:03]} Ng8 {[%emt 0:00:13]} 28. Qf4 {[%emt 0:00:11]} Qe7 {[%emt 0:00:21]} 29. Be4 {[%emt 0:00:12]} Red8 {[%emt 0:00:23]} 30. Bxd5 {[%emt 0:00:03]} Rxd5 {[%emt 0:00:09]} 31. Ra1 {[%emt 0:00:08]} Nh7 {[%emt 0:00:24]} 32. Ra8 {[%emt 0:00:08]} Rd8 {[%emt 0:00:08]} 33. Rea1 {[%emt 0:00:07]} Ng5 {[%emt 0:00:06]} 34. R1a7 {[%emt 0:00:10]} Qe8 {[%emt 0:01:58]} 35. Nxg5 {[%emt 0:00:21]} hxg5 {[%emt 0:00:02]} 36. Qxf7 {[%emt 0:00:18]} Qxf7 {[%emt 0:00:02]} 37. Rxf7 {[%emt 0:00:03]} Nh6 {[%emt 0:00:04]} 38. Rc7 {[%emt 0:00:07]} Rxd4 {[%emt 0:00:09]} 39. Rcxc8+ {[%emt 0:00:04]} Kh7 {[%emt 0:00:00]} 40. Rh8# 1-0

[Event "Skalica Rapid 2020"]
[Site "Skalica"]
[Date "2020.08.29"]
[Round "3.7"]
[White "Krupa Miroslav"]
[Black "Petran, Peter"]
[Result "0-1"]
[ECO "B06"]
[WhiteElo "1816"]
[BlackElo "2219"]
[Annotator "ChessBase"]
[PlyCount "100"]
[EventDate "2020.08.29"]
[EventType "swiss"]
[EventCountry "SVK"]
[SourceTitle "playchess.com"]
[Source "ChessBase"]
[SourceQuality "1"]
[TimeControl "600+5"]

1. e4 {[%emt 0:00:00]} g6 {[%emt 0:00:00]} 2. d4 {[%emt 0:00:00]} Bg7 {[%emt 0:00:01]} 3. Be3 {[%emt 0:00:07]} d6 {[%emt 0:00:04]} 4. Nc3 {[%emt 0:00:04]} c6 {[%emt 0:00:04]} 5. Qd2 {[%emt 0:00:27]} b5 {[%emt 0:00:01]} 6. f3 {[%emt 0:00:02]} Nd7 {[%emt 0:00:06]} 7. g4 {[%emt 0:00:06]} Nb6 {[%emt 0:00:14]} 8. h4 {[%emt 0:00:53]} h5 {[%emt 0:00:01]} 9. g5 {[%emt 0:01:33]} e6 {[%emt 0:00:14]} 10. f4 {[%emt 0:02:11]} d5 {[%emt 0:00:13]} 11. exd5 {[%emt 0:00:23]} exd5 {[%emt 0:00:11]} 12. O-O-O {[%emt 0:00:02]} Ne7 {[%emt 0:00:08]} 13. Re1 {[%emt 0:00:16]} Bg4 {[%emt 0:00:18]} 14. Bf2 {[%emt 0:00:25]} O-O {[%emt 0:00:11]} 15. Bh3 {[%emt 0:00:42]} Nc4 {[%emt 0:00:40]} 16. Qd3 {[%emt 0:00:02]} Bf5 {[%emt 0:01:50]} 17. Bxf5 {[%emt 0:00:05]} Nxf5 {[%emt 0:00:01]} 18. Nf3 {[%emt 0:00:29]} Qc7 {[%emt 0:00:51]} 19. Ne5 {[%emt 0:00:05]} Rfe8 {[%emt 0:00:05]} 20. Ne2 {[%emt 0:00:25]} Re6 {[%emt 0:00:28]} 21. Ng3 {[%emt 0:00:05]} Ncd6 {[%emt 0:00:09]} 22. Qc3 {[%emt 0:01:00]} Rc8 {[%emt 0:00:42]} 23. Kb1 {[%emt 0:00:03]} a5 {[%emt 0:00:08]} 24. Nxf5 {[%emt 0:00:06]} Nxf5 {[%emt 0:00:02]} 25. Re2 {[%emt 0:00:21]} Bf8 {[%emt 0:00:03]} 26. Qd3 {[%emt 0:00:17]} b4 {[%emt 0:00:29]} 27. Rhe1 {[%emt 0:00:03]} c5 {[%emt 0:00:57]} 28. dxc5 {[%emt 0:00:16]} Bxc5 {[%emt 0:00:08]} 29. Qxd5 {[%emt 0:00:11]} Bxf2 {[%emt 0:00:15]} 30. Rxf2 {[%emt 0:00:01]} Nxh4 {[%emt 0:00:13]} 31. Rfe2 {[%emt 0:00:21]} Rce8 {[%emt 0:00:20]} 32. Qd3 {[%emt 0:01:06]} Rd6 {[%emt 0:00:40]} 33. Qb3 {[%emt 0:00:27]} Red8 {[%emt 0:00:17]} 34. a3 {[%emt 0:00:09]} bxa3 {[%emt 0:00:09]} 35. Qxa3 {[%emt 0:00:00]} Nf5 {[%emt 0:00:05]} 36. Qb3 {[%emt 0:00:01]} Nd4 {[%emt 0:00:04]} 37. Qc4 {[%emt 0:00:11]} Qxc4 {[%emt 0:00:05]} 38. Nxc4 {[%emt 0:00:01]} Nxe2 {[%emt 0:00:02]} 39. Nxd6 {[%emt 0:00:07]} Nxf4 {[%emt 0:00:06]} 40. Ne4 {[%emt 0:00:03]} Kg7 {[%emt 0:00:14]} 41. Nf6 {[%emt 0:00:11]} Ne6 {[%emt 0:00:06]} 42. Ne4 {[%emt 0:00:03]} Rd5 {[%emt 0:00:10]} 43. c4 {[%emt 0:00:07]} Re5 {[%emt 0:00:07]} 44. Kc2 {[%emt 0:00:07]} Nxg5 {[%emt 0:00:06]} 45. Kd3 {[%emt 0:00:01]} Rxe4 {[%emt 0:00:24]} 46. Rxe4 {[%emt 0:00:02]} Nxe4 {[%emt 0:00:01]} 47. Kxe4 {[%emt 0:00:01]} Kf6 {[%emt 0:00:07]} 48. Kd5 {[%emt 0:00:03]} h4 {[%emt 0:00:04]} 49. c5 {[%emt 0:00:01]} h3 {[%emt 0:00:01]} 50. c6 {[%emt 0:00:02]} h2 {[%emt 0:00:01]} 0-1

[Event "Skalica Rapid 2020"]
[Site "Skalica"]
[Date "2020.08.29"]
[Round "3.7"]
[White "Tupy, Bystrik"]
[Black "Janas, Peter"]
[Result "1-0"]
[ECO "B01"]
[WhiteElo "1702"]
[BlackElo "1562"]
[Annotator "NA"]
[PlyCount "109"]
[EventDate "2020.08.29"]
[EventType "swiss"]
[EventCountry "SVK"]
[SourceTitle "playchess.com"]
[Source "ChessBase"]
[SourceQuality "1"]
[TimeControl "600+5"]

1. e4 {[%emt 0:00:00]} d5 {[%emt 0:00:00]} 2. exd5 {[%emt 0:00:00]} Qxd5 {[%emt 0:00:00]} 3. Nc3 {[%emt 0:00:00]} Qa5 {[%emt 0:00:00]} 4. Nf3 {[%emt 0:00:01]} Bg4 5. Be2 {[%emt 0:00:02]} Nf6 {[%emt 0:00:03]} 6. h3 {[%emt 0:00:02]} Bh5 {[%emt 0:00:04]} 7. Nd4 {[%emt 0:00:09]} Bxe2 {[%emt 0:00:16]} 8. Qxe2 {[%emt 0:00:02]} c6 {[%emt 0:00:05]} 9. d3 {[%emt 0:00:08]} Nbd7 {[%emt 0:00:01]} 10. Nb3 {[%emt 0:00:01]} Qc7 {[%emt 0:00:06]} 11. Bg5 {[%emt 0:00:07]} e6 {[%emt 0:00:10]} 12. O-O {[%emt 0:00:11]} h6 {[%emt 0:00:16]} 13. Bh4 {[%emt 0:00:03]} Bd6 {[%emt 0:00:14]} 14. Bxf6 {[%emt 0:00:15]} Nxf6 {[%emt 0:00:02]} 15. Rfe1 {[%emt 0:00:08]} O-O {[%emt 0:00:14]} 16. Ne4 {[%emt 0:00:10]} Nxe4 {[%emt 0:00:23]} 17. Qxe4 {[%emt 0:00:39]} a5 {[%emt 0:00:16]} 18. Nd2 {[%emt 0:00:04]} b5 {[%emt 0:00:11]} 19. Nf3 {[%emt 0:00:16]} a4 {[%emt 0:00:10]} 20. c3 {[%emt 0:00:02]} Rfd8 {[%emt 0:00:32]} 21. d4 {[%emt 0:00:03]} a3 {[%emt 0:00:15]} 22. b3 {[%emt 0:00:19]} c5 {[%emt 0:00:36]} 23. Rac1 {[%emt 0:00:17]} Qb6 {[%emt 0:00:45]} 24. Red1 {[%emt 0:01:48]} Rac8 {[%emt 0:00:28]} 25. d5 {[%emt 0:00:39]} Qb7 {[%emt 0:00:43]} 26. c4 {[%emt 0:00:56]} b4 {[%emt 0:00:19]} 27. Rd3 {[%emt 0:00:27]} Rd7 {[%emt 0:01:29]} 28. Rcd1 {[%emt 0:00:18]} Rcd8 {[%emt 0:00:08]} 29. Kf1 {[%emt 0:00:41]} exd5 {[%emt 0:00:59]} 30. Qxd5 {[%emt 0:00:49]} Qxd5 {[%emt 0:00:16]} 31. Rxd5 {[%emt 0:00:02]} Kf8 {[%emt 0:00:16]} 32. Ne5 {[%emt 0:00:56]} Bxe5 {[%emt 0:00:44]} 33. Rxd7 {[%emt 0:00:04]} Re8 {[%emt 0:00:05]} 34. Rd8 {[%emt 0:00:16]} Bd4 {[%emt 0:00:12]} 35. Rxe8+ {[%emt 0:00:11]} Kxe8 {[%emt 0:00:01]} 36. Re1+ {[%emt 0:00:04]} Kf8 {[%emt 0:00:13]} 37. Re4 {[%emt 0:00:06]} Bc3 {[%emt 0:00:32]} 38. Ke2 {[%emt 0:00:04]} f5 {[%emt 0:00:02]} 39. Re6 {[%emt 0:00:03]} Kf7 {[%emt 0:00:03]} 40. Re3 {[%emt 0:00:02]} Bd4 {[%emt 0:00:03]} 41. Rd3 {[%emt 0:00:32]} Ke6 {[%emt 0:00:23]} 42. f3 {[%emt 0:00:07]} f4 {[%emt 0:00:15]} 43. Rd1 {[%emt 0:00:17]} Ke5 {[%emt 0:00:11]} 44. Kd3 {[%emt 0:00:01]} Kf5 {[%emt 0:00:16]} 45. Re1 {[%emt 0:00:02]} h5 {[%emt 0:00:17]} 46. Re4 {[%emt 0:00:02]} Bf2 {[%emt 0:00:05]} 47. Re7 {[%emt 0:00:08]} Bd4 {[%emt 0:00:05]} 48. Rd7 {[%emt 0:00:04]} Bf2 {[%emt 0:00:14]} 49. Rxg7 {[%emt 0:00:08]} Kf6 {[%emt 0:00:05]} 50. Rd7 {[%emt 0:00:05]} h4 {[%emt 0:00:06]} 51. Ke4 {[%emt 0:00:06]} Be3 {[%emt 0:00:04]} 52. Rd5 {[%emt 0:00:07]} Ke6 {[%emt 0:00:05]} 53. Rd3 {[%emt 0:00:07]} Bc1 {[%emt 0:00:07]} 54. Rd5 {[%emt 0:00:03]} Be3 {[%emt 0:00:02]} 55. Rh5 {[%emt 0:00:01]} 1-0

[Event "Skalica Rapid 2020"]
[Site "Skalica"]
[Date "2020.08.29"]
[Round "3.8"]
[White "Jablonicky, Martin"]
[Black "Vadila Ondrej"]
[Result "1-0"]
[ECO "A60"]
[WhiteElo "2290"]
[BlackElo "2057"]
[Annotator "ChessBase"]
[PlyCount "75"]
[EventDate "2020.08.29"]
[EventType "swiss"]
[EventCountry "SVK"]
[SourceTitle "playchess.com"]
[Source "ChessBase"]
[SourceQuality "1"]
[TimeControl "600+5"]

1. d4 {[%emt 0:00:00]} Nf6 {[%emt 0:00:00]} 2. c4 {[%emt 0:00:03]} c5 {[%emt 0:00:01]} 3. d5 {[%emt 0:00:00]} e6 {[%emt 0:00:00]} 4. Nc3 {[%emt 0:00:01]} exd5 {[%emt 0:00:00]} 5. cxd5 {[%emt 0:00:01]} Bd6 {[%emt 0:00:00]} 6. e4 {[%emt 0:00:19]} Be5 {[%emt 0:00:00]} 7. Bd3 {[%emt 0:00:08]} d6 {[%emt 0:00:01]} 8. Nge2 {[%emt 0:00:04]} O-O {[%emt 0:00:12]} 9. O-O {[%emt 0:00:04]} Re8 {[%emt 0:03:48]} 10. Bc2 {[%emt 0:00:13]} Bg4 {[%emt 0:00:29]} 11. f3 {[%emt 0:00:22]} Bh5 {[%emt 0:00:13]} 12. Be3 {[%emt 0:00:14]} Nbd7 {[%emt 0:00:20]} 13. Nf4 {[%emt 0:00:17]} Bg6 {[%emt 0:00:33]} 14. Nxg6 {[%emt 0:00:04]} hxg6 {[%emt 0:00:01]} 15. Qd2 {[%emt 0:00:22]} a6 {[%emt 0:00:38]} 16. a4 {[%emt 0:00:11]} Rb8 {[%emt 0:00:02]} 17. Bd3 {[%emt 0:00:17]} Qc7 {[%emt 0:00:37]} 18. Bf2 {[%emt 0:00:18]} c4 {[%emt 0:00:12]} 19. Bc2 {[%emt 0:00:01]} b5 {[%emt 0:00:35]} 20. axb5 {[%emt 0:00:02]} axb5 {[%emt 0:00:01]} 21. Ra7 {[%emt 0:00:02]} Qc8 {[%emt 0:00:29]} 22. Re1 {[%emt 0:00:25]} Nc5 {[%emt 0:00:09]} 23. Na2 {[%emt 0:00:54]} Bxb2 {[%emt 0:00:31]} 24. Nb4 {[%emt 0:00:01]} Rb7 {[%emt 0:00:27]} 25. Ra2 {[%emt 0:00:34]} c3 {[%emt 0:00:12]} 26. Qf4 {[%emt 0:00:04]} Qc7 {[%emt 0:00:13]} 27. Bd4 {[%emt 0:00:45]} Nfd7 {[%emt 0:00:13]} 28. h4 {[%emt 0:00:42]} Ne5 {[%emt 0:00:17]} 29. Qg3 {[%emt 0:00:02]} Qd7 {[%emt 0:00:34]} 30. f4 {[%emt 0:00:16]} Ng4 {[%emt 0:00:41]} 31. e5 {[%emt 0:00:07]} Nh6 {[%emt 0:00:20]} 32. e6 {[%emt 0:00:44]} fxe6 {[%emt 0:00:07]} 33. Qxg6 {[%emt 0:00:04]} Nf5 {[%emt 0:00:25]} 34. Bxf5 {[%emt 0:00:02]} exf5 {[%emt 0:00:12]} 35. Rxe8+ {[%emt 0:00:01]} Qxe8 {[%emt 0:00:01]} 36. Qxe8+ {[%emt 0:00:02]} Kh7 {[%emt 0:00:05]} 37. Qh5+ {[%emt 0:00:05]} Kg8 {[%emt 0:00:00]} 38. Ra8+ {[%emt 0:00:02]} 1-0